bitfinex/quotes_BTCUSD_20260125
["timestamp","ask_amount","ask_price","bid_price","bid_amount"]
[1769357781945,0.47189728,87807.0,87765.0,0.2396438]
[1769357782195,0.7242,87806.0,87784.0,0.001]
[1769357782392,0.4404,87806.0,87784.0,0.001]
[1769357782768,0.01138952,87800.0,87769.0,0.00113934]
[1769357782970,0.01138926,87802.0,87760.0,0.00011]
[1769357783225,2.31484,87795.0,87760.0,0.00011]
[1769357783370,1.9445,87799.0,87761.0,1.14274234]
[1769357783591,2.31484,87798.0,87761.0,1.14274234]
[1769357783770,2.31484,87799.0,87761.0,1.14274234]
[1769357783976,0.01893831,87798.0,87761.0,0.0461437]
[1769357784196,2.31484,87797.0,87761.0,0.05753828]
[1769357784402,1.9367,87797.0,87761.0,0.0461437]
[1769357784598,0.6055,87797.0,87761.0,0.05753828]
[1769357784802,0.47142442,87800.0,87764.0,0.05699419]
[1769357784803,0.3771,87799.0,87764.0,0.05699419]
[1769357785012,0.3771,87799.0,87764.0,0.0456]
[1769357785447,2.31484,87797.0,87764.0,0.05699419]
[1769357785617,2.3004,87799.0,87764.0,0.0456]
[1769357785819,2.31484,87797.0,87764.0,0.0456]
[1769357786020,0.5648,87795.0,87764.0,0.0456]
[1769357786272,0.01138874,87806.0,87764.0,0.0456]
[1769357786273,0.0009301,87794.0,87764.0,0.05699419]
[1769357786414,2.2164,87805.0,87770.0,1.09659864]
[1769357786612,0.0009301,87804.0,87780.0,0.37125281]
[1769357786819,2.31484,87805.0,87780.0,0.37125281]
[1769357787057,0.0009301,87804.0,87770.0,0.37125281]
[1769357787289,0.0009301,87806.0,87774.0,0.05699289]
[1769357787502,0.0009301,87806.0,87780.0,0.37125281]
[1769357788246,0.0009301,87806.0,87776.0,1.09659864]
[1769357788672,0.0009301,87806.0,87767.0,0.0113938]
[1769357788878,0.00754853,87792.0,87760.0,0.04571]
[1769357789086,2.31484,87790.0,87760.0,0.41696281]
[1769357789257,0.0009301,87791.0,87760.0,0.41696281]
[1769357789258,0.0009301,87789.0,87760.0,0.41696281]
[1769357789460,0.00754853,87792.0,87760.0,0.41696281]
[1769357789461,0.0009301,87790.0,87760.0,0.41696281]
[1769357790023,2.31484,87790.0,87760.0,0.41696281]
[1769357790135,0.0009301,87789.0,87760.0,0.41696281]
[1769357790562,0.01139081,87790.0,87760.0,0.41696281]
[1769357790767,0.0009301,87789.0,87761.0,1.14274234]
[1769357791037,0.01139107,87788.0,87761.0,0.0227437]
[1769357791284,2.1529,87785.0,87760.0,0.37136281]
[1769357791479,0.0009301,87784.0,87760.0,0.37136281]
[1769357791720,0.0009301,87785.0,87760.0,0.00011]
[1769357791932,0.0009301,87784.0,87760.0,0.00011]
[1769357792295,0.47142442,87784.0,87760.0,0.00011]
[1769357792499,2.31484,87782.0,87760.0,0.00011]
[1769357792706,0.0009301,87781.0,87760.0,0.00011]
[1769357792944,2.31484,87781.0,87760.0,0.00011]
[1769357793147,2.31484,87779.0,87760.0,0.00011]
[1769357793356,2.31484,87776.0,87750.0,0.0476]
[1769357793554,0.01958049,87775.0,87750.0,0.0476]
[1769357793764,2.31484,87780.0,87750.0,0.05415155]
[1769357793971,2.31484,87778.0,87750.0,0.42540436]
[1769357794190,0.01139406,87765.0,87721.0,0.01139977]
[1769357794404,0.0009301,87777.0,87721.0,0.01139977]
[1769357794405,0.00047257,87778.0,87750.0,0.37125281]
[1769357794608,2.31484,87776.0,87740.0,0.37125281]
[1769357794815,0.46606122,87757.0,87720.0,0.38265271]
[1769357795018,0.01,87740.0,87720.0,0.37125281]
[1769357795431,2.31484,87755.0,87730.0,0.37125281]
[1769357795632,1.1915,87755.0,87730.0,0.37125281]
[1769357795771,1.1915,87755.0,87722.0,0.01139964]
[1769357795973,1.1915,87755.0,87725.0,0.01139925]
[1769357796180,0.2789,87753.0,87723.0,0.01139951]
[1769357796382,0.2789,87753.0,87724.0,0.00228081]
[1769357796594,0.2789,87753.0,87722.0,0.00228219]
[1769357796793,0.2789,87753.0,87721.0,0.0456]
[1769357796794,2.32623575,87752.0,87721.0,0.0456]
[1769357797001,0.47745762,87747.0,87721.0,0.0456]
[1769357797201,2.31484,87745.0,87721.0,0.0456]
[1769357797400,1.2318,87745.0,87721.0,0.0456]
[1769357797615,0.04774559,87746.0,87721.0,0.0456]
[1769357797812,0.17508,87751.0,87721.0,0.0456]
[1769357797813,2.31484,87748.0,87721.0,0.0456]
[1769357798022,0.7601,87746.0,87721.0,0.0456]
[1769357798433,0.915,87752.0,87721.0,0.0456]
[1769357798684,0.001,87753.0,87730.0,0.37125281]
[1769357798877,0.00047228,87755.0,87753.0,0.001]
[1769357799090,0.0009301,87767.0,87753.0,0.001]
[1769357799316,0.001,87746.0,87727.0,0.01139899]
[1769357799465,0.001,87746.0,87727.0,0.00047228]
[1769357799847,2.31484,87755.0,87727.0,0.00047228]
[1769357800242,2.31484,87757.0,87727.0,0.00047228]
[1769357800464,2.31484,87767.0,87732.0,1.12262471]
[1769357800664,0.8041,87765.0,87732.0,0.05699171]
[1769357800861,0.64118122,87771.0,87735.0,0.01139795]
[1769357800862,2.127809,87763.0,87735.0,0.01139795]
[1769357801061,1.9703,87761.0,87735.0,0.01139795]
[1769357801267,2.055,87759.0,87736.0,0.11160278]
[1769357801467,1.0209,87757.0,87734.0,0.00118535]
[1769357801665,0.001,87755.0,87734.0,0.00118535]
[1769357801883,0.001,87755.0,87734.0,0.00202537]
[1769357802092,0.0009301,87768.0,87734.0,0.00202537]
[1769357802291,2.127809,87767.0,87734.0,0.00202537]
[1769357802494,2.127809,87765.0,87734.0,0.00202537]
[1769357802697,0.01435032,87768.0,87734.0,0.00202537]
[1769357802698,2.127809,87763.0,87734.0,0.00202537]
[1769357802905,0.46606122,87760.0,87733.0,0.0001]
[1769357803111,0.01139562,87753.0,87727.0,0.00047228]
[1769357803437,2.127809,87749.0,87727.0,0.00047228]
[1769357803776,2.127809,87748.0,87727.0,0.00047228]
[1769357804888,1.2386,87746.0,87727.0,0.00047228]
[1769357805099,0.46606122,87749.0,87727.0,0.00047228]
[1769357805100,2.127809,87748.0,87727.0,0.00047228]
[1769357805404,0.46606122,87749.0,87711.0,0.0008615]
[1769357805405,2.13920553,87746.0,87711.0,0.0008615]
[1769357805630,0.01139744,87739.0,87711.0,0.0008615]
[1769357805838,2.64544454,87737.0,87711.0,0.0008615]
[1769357806035,0.37266488,87740.0,87711.0,0.0008615]
[1769357806036,2.127809,87735.0,87711.0,0.0008615]
[1769357806280,2.127809,87735.0,87710.0,4.183e-05]
[1769357806281,2.127809,87732.0,87690.0,0.38266488]
[1769357806473,0.01520831,87725.0,87690.0,0.01]
[1769357806687,1.2519,87724.0,87700.0,0.37266488]
[1769357806869,1.2519,87724.0,87690.0,0.38266488]
[1769357807073,0.2436,87724.0,87691.0,1.12262471]
[1769357807405,0.2436,87724.0,87690.0,0.38266488]
[1769357807406,2.127809,87740.0,87711.0,1.12262471]
[1769357807605,2.127809,87738.0,87701.0,0.01140237]
[1769357807803,2.127809,87736.0,87701.0,0.01140237]
[1769357808038,0.0009301,87735.0,87702.0,0.01140224]
[1769357808264,0.0009301,87736.0,87710.0,0.37266488]
[1769357808396,0.0009301,87736.0,87711.0,1.12262471]
[1769357808744,0.001,87740.0,87723.0,0.01139951]
[1769357808884,0.001,87740.0,87726.0,0.01139912]
[1769357809086,0.0009301,87761.0,87737.0,0.01139769]
[1769357809289,0.08855172,87782.0,87737.0,0.01139769]
[1769357809290,0.0009301,87766.0,87745.0,1.12262471]
[1769357809488,0.4707,87774.0,87747.0,1.12262471]
[1769357809699,0.0456,87776.0,87750.0,0.01139601]
[1769357809700,0.4051,87772.0,87750.0,0.01139601]
[1769357809900,0.0009301,87771.0,87750.0,1.49528959]
[1769357810124,0.08855172,87814.0,87751.0,0.1183863]
[1769357810325,0.08855172,87814.0,87746.0,0.0456]
[1769357810326,0.01139055,87792.0,87752.0,0.01639863]
[1769357810571,0.01139185,87782.0,87748.0,0.46240435]
[1769357810775,0.01139185,87782.0,87737.0,0.04607236]
[1769357810776,0.01137228,87748.0,87737.0,0.50847671]
[1769357810995,0.01137228,87748.0,87737.0,0.04607236]
[1769357811320,0.01137228,87748.0,87715.0,1.12262471]
[1769357811495,0.14675583,87746.0,87710.0,0.37266488]
[1769357811720,0.3299,87747.0,87711.0,1.12262471]
[1769357811914,0.01184464,87748.0,87715.0,0.46240435]
[1769357812149,0.00047236,87748.0,87715.0,0.46240435]
[1769357812364,0.01139666,87745.0,87703.0,0.01140211]
[1769357812564,1.78259496,87741.0,87701.0,0.46240435]
[1769357812696,0.01139808,87734.0,87701.0,0.46240435]
[1769357812895,0.14675583,87735.0,87701.0,0.46240435]
[1769357813120,1.725609,87737.0,87701.0,0.46240435]
[1769357813326,1.725609,87737.0,87705.0,0.01140185]
[1769357813535,0.3639,87742.0,87711.0,0.01140107]
[1769357813733,0.1514,87742.0,87710.0,0.38406608]
[1769357814088,1.725609,87747.0,87720.0,0.37266488]
[1769357814291,1.725609,87747.0,87712.0,1.58502906]
[1769357814292,1.725609,87747.0,87712.0,0.46240435]
[1769357814682,1.725609,87742.0,87712.0,0.46240435]
[1769357814845,1.725609,87737.0,87704.0,0.0456]
[1769357815025,0.01139808,87734.0,87704.0,0.0456]
[1769357815232,1.725609,87734.0,87704.0,0.0456]
[1769357815646,1.725609,87736.0,87704.0,0.0456]
[1769357815858,0.01139769,87737.0,87704.0,0.0456]
[1769357815859,1.725609,87735.0,87704.0,0.0456]
[1769357816071,1.73700682,87736.0,87704.0,0.0456]
[1769357816269,1.725609,87736.0,87704.0,0.0456]
[1769357816472,1.73700669,87737.0,87704.0,0.0456]
[1769357816702,1.725609,87726.0,87704.0,0.0456]
[1769357817477,0.01139757,87738.0,87704.0,0.0456]
[1769357817726,1.725609,87732.0,87704.0,0.0456]
[1769357817967,0.90709521,87732.0,87704.0,0.0456]
[1769357818193,1.78260487,87726.0,87690.0,0.01]
[1769357818413,1.725609,87717.0,87690.0,0.01]
[1769357818630,1.725609,87721.0,87690.0,0.01]
[1769357818827,0.01139964,87722.0,87691.0,0.46240435]
[1769357818945,1.4011,87720.0,87692.0,1.12262471]
[1769357819148,0.01140016,87718.0,87690.0,0.01]
[1769357819476,1.4011,87720.0,87659.0,0.0008615]
[1769357819477,1.725609,87709.0,87670.0,0.37266488]
[1769357819685,1.725609,87706.0,87670.0,0.37266488]
[1769357820030,0.04670612,87708.0,87666.0,0.47381128]
[1769357820031,0.00759613,87704.0,87671.0,0.00031904]
[1769357820200,1.725609,87707.0,87670.0,0.37266488]
[1769357820406,1.725609,87716.0,87680.0,0.37266488]
[1769357820566,0.00047207,87718.0,87691.0,1.12262471]
[1769357820772,0.00047207,87718.0,87693.0,1.12262471]
[1769357820980,1.725609,87717.0,87691.0,0.46240435]
[1769357821176,0.00047207,87718.0,87678.0,0.19260536]
[1769357821177,0.00047207,87718.0,87694.0,1.12262471]
[1769357821385,0.07455707,87741.0,87694.0,1.12262471]
[1769357821386,0.06315989,87741.0,87706.0,0.01140172]
[1769357821630,0.46606122,87752.0,87706.0,0.01140172]
[1769357821631,1.0748,87751.0,87710.0,1.50669079]
[1769357821842,1.725609,87748.0,87710.0,1.96909514]
[1769357822094,1.725609,87748.0,87710.0,1.58502906]
[1769357822298,0.01139653,87746.0,87710.0,1.58502906]
[1769357822521,1.725609,87746.0,87711.0,0.00367797]
[1769357822661,1.725609,87758.0,87718.0,0.46240435]
[1769357822859,0.4774558,87761.0,87718.0,0.46240435]
[1769357822860,0.5358,87756.0,87722.0,0.01139964]
[1769357823057,0.5674,87760.0,87724.0,0.01139938]
[1769357823347,0.01139536,87755.0,87722.0,0.47315354]
[1769357823526,1.725609,87753.0,87722.0,0.47315354]
[1769357823781,1.725609,87752.0,87722.0,0.47315354]
[1769357823926,0.01139549,87754.0,87722.0,0.47315354]
[1769357823927,0.2259,87754.0,87722.0,0.47315354]
[1769357824132,1.7155,87752.0,87723.0,0.47315354]
[1769357824339,0.01139406,87765.0,87712.0,0.11160278]
[1769357824340,0.020736,87765.0,87731.0,1.11175731]
[1769357824683,0.020736,87765.0,87730.0,0.37266488]
[1769357824684,0.1109666,87764.0,87736.0,0.47315354]
[1769357824894,0.1109666,87764.0,87740.0,0.37266488]
[1769357825114,0.01139172,87783.0,87732.0,0.11160278]
[1769357825115,1.725609,87793.0,87762.0,0.47315354]
[1769357825320,1.1338,87803.0,87772.0,0.01139315]
[1769357825524,1.1338,87803.0,87769.0,0.0569675]
[1769357825525,0.0003453,87803.0,87773.0,0.00911479]
[1769357825923,0.0003453,87803.0,87779.0,0.01139224]
[1769357826080,0.0003453,87803.0,87784.0,0.01139159]
[1769357826277,0.01786252,87820.0,87786.0,0.47315354]
[1769357826484,0.01138485,87836.0,87795.0,0.01139017]
[1769357826688,0.1099,87836.0,87803.0,0.01138913]
[1769357826889,0.1099,87836.0,87804.0,0.011389]
[1769357827115,0.01138446,87839.0,87803.0,0.47315354]
[1769357827314,0.37266488,87840.0,87803.0,0.47315354]
[1769357827516,0.01138252,87854.0,87801.0,0.47315354]
[1769357827678,0.01138226,87856.0,87814.0,0.0113877]
[1769357827875,0.01138226,87856.0,87810.0,0.37266488]
[1769357827876,0.37266488,87860.0,87819.0,0.01138705]
[1769357828152,0.01138148,87862.0,87819.0,1.11223026]
[1769357828153,0.5212,87862.0,87819.0,1.11223026]
[1769357828355,0.43616723,87870.0,87829.0,0.01138576]
[1769357828356,0.3739,87864.0,87829.0,0.01138576]
[1769357828478,0.1889,87869.0,87828.0,1.18007219]
[1769357828680,0.1889,87869.0,87829.0,0.47315354]
[1769357828893,0.1889,87869.0,87819.0,0.00047295]
[1769357828894,0.37266488,87850.0,87819.0,0.00047295]
[1769357829104,0.37266488,87840.0,87819.0,0.00047295]
[1769357829304,1.725609,87847.0,87819.0,0.00047295]
[1769357829728,0.01138446,87839.0,87819.0,0.00047295]
[1769357829930,1.725609,87847.0,87819.0,0.00047295]
[1769357830505,1.725609,87844.0,87819.0,0.00047295]
[1769357830860,1.725609,87847.0,87819.0,0.00047295]
[1769357831040,0.01138355,87846.0,87819.0,0.00047295]
[1769357831245,1.725609,87845.0,87819.0,0.00047295]
[1769357831446,0.4863,87845.0,87819.0,0.00047295]
[1769357831669,1.725609,87859.0,87819.0,0.00047295]
[1769357831875,0.001,87844.0,87819.0,0.00047295]
[1769357832029,0.001,87844.0,87821.0,0.47315354]
[1769357832231,0.37266488,87840.0,87819.0,0.00047295]
[1769357832433,1.725609,87847.0,87819.0,0.00047295]
[1769357832639,0.37266488,87840.0,87819.0,0.00047295]
[1769357832851,0.37266488,87840.0,87805.0,0.47315354]
[1769357833134,0.01138472,87837.0,87801.0,0.01865895]
[1769357833269,0.01138459,87838.0,87796.0,0.0456]
[1769357833270,0.01138485,87836.0,87796.0,0.0456]
[1769357833465,1.725609,87836.0,87796.0,0.0456]
[1769357833667,0.01138472,87837.0,87796.0,0.0456]
[1769357833668,0.01138627,87825.0,87796.0,0.0456]
[1769357833871,1.725609,87829.0,87796.0,0.0456]
[1769357834093,1.73699476,87829.0,87796.0,0.0456]
[1769357834294,1.725609,87830.0,87796.0,0.0456]
[1769357834472,1.73699424,87833.0,87796.0,0.0456]
[1769357834813,0.59872431,87835.0,87796.0,0.0456]
[1769357834814,1.725609,87830.0,87796.0,0.0456]
[1769357834956,0.0113855,87831.0,87796.0,0.0456]
[1769357834957,1.725609,87831.0,87796.0,0.0456]
[1769357835163,1.725609,87831.0,87796.0,0.0397]
[1769357835164,0.01138705,87819.0,87796.0,0.0397]
[1769357835366,1.725609,87815.0,87796.0,0.0397]
[1769357835586,0.58058718,87818.0,87796.0,0.0397]
[1769357835808,0.01138679,87821.0,87787.0,0.17508]
[1769357835809,2.1096621,87810.0,87787.0,0.17508]
[1769357835990,0.01138874,87806.0,87776.0,0.48065749]
[1769357836271,0.01138783,87813.0,87777.0,0.05353723]
[1769357836478,1.725609,87812.0,87777.0,0.05353723]
[1769357836679,0.6742,87811.0,87778.0,0.00272004]
[1769357836892,1.725609,87808.0,87778.0,0.00272004]
[1769357837123,1.73699748,87808.0,87778.0,0.00587462]
[1769357837356,1.725609,87799.0,87772.0,0.0456]
[1769357837575,0.68429805,87807.0,87772.0,0.0456]
[1769357837576,1.725609,87808.0,87772.0,0.0456]
[1769357837817,0.01138874,87806.0,87772.0,0.0456]
[1769357838070,1.73699826,87802.0,87772.0,0.0456]
[1769357838285,0.8573,87802.0,87764.0,0.01139419]
[1769357838505,1.3836,87805.0,87765.0,0.01139406]
[1769357838821,0.01138874,87806.0,87765.0,0.01139406]
[1769357838822,0.941,87806.0,87767.0,0.49205129]
[1769357839025,0.3840531,87810.0,87772.0,0.01139315]
[1769357839026,0.7209,87809.0,87772.0,0.01139315]
[1769357839222,0.6338,87810.0,87773.0,1.08640803]
[1769357839427,0.17508,87816.0,87776.0,0.01139263]
[1769357839627,0.01138796,87812.0,87775.0,0.48065749]
[1769357840033,0.0113877,87814.0,87775.0,0.48065749]
[1769357840484,0.37266488,87830.0,87784.0,0.01139159]
[1769357840635,0.01138602,87827.0,87784.0,0.01139159]
[1769357840841,0.63874076,87824.0,87785.0,0.00355839]
[1769357841049,0.01138563,87830.0,87791.0,0.48065749]
[1769357841257,0.1459,87833.0,87793.0,0.01139042]
[1769357841448,0.17508,87834.0,87799.0,0.01138965]
[1769357841708,1.725609,87845.0,87810.0,0.37266488]
[1769357841889,0.4414,87849.0,87811.0,0.03840536]
[1769357842044,0.01138161,87861.0,87820.0,0.37266488]
[1769357842291,0.41826488,87870.0,87820.0,0.37266488]
[1769357842292,0.01138083,87867.0,87825.0,1.08640803]
[1769357842491,0.06231193,87866.0,87828.0,1.08640803]
[1769357842697,0.05093097,87866.0,87829.0,0.48065749]
[1769357842898,0.05093097,87866.0,87829.0,1.08640803]
[1769357843099,1.73699009,87865.0,87830.0,0.48065749]
[1769357843302,0.01138135,87863.0,87830.0,0.48065749]
[1769357843497,0.01138135,87863.0,87831.0,0.59226027]
[1769357843704,0.01138226,87856.0,87829.0,0.00014205]
[1769357843894,1.725609,87859.0,87829.0,0.00014205]
[1769357844100,0.128,87860.0,87829.0,0.00014205]
[1769357844303,0.01138109,87865.0,87829.0,0.00014205]
[1769357844515,1.6311,87865.0,87831.0,0.48065749]
[1769357844711,0.57778109,87865.0,87832.0,0.59226027]
[1769357844936,0.01138213,87857.0,87832.0,0.48065749]
[1769357845157,0.011382,87858.0,87829.0,0.00014205]
[1769357845361,0.01138252,87854.0,87829.0,0.00014205]
[1769357845513,1.73699113,87857.0,87829.0,0.00014205]
[1769357845718,0.01138213,87857.0,87829.0,0.00014205]
[1769357846112,0.37266488,87850.0,87829.0,0.00014205]
[1769357846314,0.0456,87870.0,87805.0,0.48065749]
[1769357846315,0.38404921,87840.0,87805.0,0.48065749]
[1769357846549,0.00014178,87840.0,87805.0,0.48065749]
[1769357846770,0.01138589,87828.0,87805.0,0.48065749]
[1769357846971,0.37280666,87840.0,87805.0,0.48065749]
[1769357846972,0.01138446,87839.0,87805.0,0.48065749]
[1769357847173,0.00014178,87840.0,87808.0,0.48065749]
[1769357847570,0.00014178,87840.0,87810.0,0.48065749]
[1769357847988,0.00014178,87840.0,87814.0,0.0113877]
[1769357848218,0.00014178,87840.0,87821.0,0.49204428]
[1769357848219,0.0001,87840.0,87821.0,0.49204428]
[1769357848423,0.0001,87840.0,87820.0,1.45907291]
[1769357848424,0.8713,87869.0,87830.0,0.37266488]
[1769357848651,0.1626,87868.0,87832.0,1.08640803]
[1769357848863,0.001,87865.0,87836.0,0.49204234]
[1769357849075,0.001,87865.0,87836.0,0.48065749]
[1769357849491,0.00014215,87869.0,87844.0,1.08640803]
[1769357849621,0.00014215,87869.0,87845.0,0.59226027]
[1769357849832,0.01152272,87869.0,87826.0,1.08640803]
[1769357850033,1.725609,87868.0,87827.0,0.48065749]
[1769357850231,1.725609,87868.0,87825.0,0.05698627]
[1769357850431,0.01138083,87867.0,87829.0,0.48065749]
[1769357850636,0.00014215,87869.0,87830.0,0.01138563]
[1769357850861,0.00014215,87869.0,87835.0,0.01138498]
[1769357851060,1.519145,87868.0,87832.0,0.48065749]
[1769357851263,0.01138161,87861.0,87825.0,1.13200803]
[1769357851507,0.01138096,87866.0,87826.0,0.48065749]
[1769357851748,0.1665,87864.0,87827.0,0.01138602]
[1769357852047,0.3402807,87868.0,87830.0,0.37266488]
[1769357852180,0.00014215,87869.0,87829.0,0.05692818]
[1769357852378,0.00014215,87869.0,87828.0,0.60364616]
[1769357852379,0.00014215,87869.0,87834.0,0.01138511]
[1769357852626,0.00014215,87869.0,87841.0,0.48065749]
[1769357852828,0.00014215,87869.0,87843.0,0.48065749]
[1769357852977,0.00014215,87869.0,87844.0,0.04806575]
[1769357853609,0.00014215,87869.0,87846.0,1.07109422]
[1769357853827,0.00014215,87869.0,87847.0,0.48210747]
[1769357854185,0.00014215,87869.0,87849.0,1.07109422]
[1769357854385,0.00014215,87869.0,87849.0,1.55320169]
[1769357854632,0.00014215,87869.0,87849.0,0.52302786]
[1769357854785,0.0006707,87877.0,87851.0,0.48210747]
[1769357854989,0.0006707,87877.0,87851.0,0.48224962]
[1769357855212,0.0006707,87877.0,87852.0,1.07109422]
[1769357855646,0.0006707,87877.0,87853.0,0.11840652]
[1769357855865,0.0006707,87877.0,87855.0,0.48210747]
[1769357856087,0.0006707,87877.0,87859.0,0.48210747]
[1769357856236,0.0016707,87877.0,87859.0,0.48210747]
[1769357856440,0.0016707,87877.0,87854.0,0.06118136]
[1769357856641,0.0016707,87877.0,87849.0,0.52302786]
[1769357856844,0.0016707,87877.0,87852.0,0.11160278]
[1769357857046,0.0016707,87877.0,87854.0,0.48210747]
[1769357857319,0.01137747,87893.0,87852.0,0.11160278]
[1769357857320,0.01137591,87905.0,87865.0,0.48210747]
[1769357857450,0.01137591,87905.0,87863.0,0.17531307]
[1769357857451,0.01137436,87917.0,87863.0,0.11840652]
[1769357857648,0.01137384,87921.0,87870.0,0.37266488]
[1769357857971,0.01137384,87921.0,87864.0,0.01753131]
[1769357857972,0.01177216,87934.0,87889.0,0.01137798]
[1769357858178,0.01177216,87934.0,87891.0,0.12978424]
[1769357858389,0.0004,87934.0,87908.0,0.01137552]
[1769357858566,0.0004,87934.0,87911.0,1.55320169]
[1769357858926,0.0004,87934.0,87914.0,0.01137475]
[1769357859083,0.00087403,87934.0,87902.0,0.0113763]
[1769357859285,0.00087403,87934.0,87904.0,0.48210747]
[1769357859482,0.00087403,87934.0,87906.0,0.01137578]
[1769357859663,0.0117697,87953.0,87903.0,0.11962322]
[1769357859664,0.0004,87953.0,87920.0,0.37266488]
[1769357859870,0.00054217,87953.0,87921.0,0.48210747]
[1769357860108,0.00054217,87953.0,87924.0,0.01137345]
[1769357860306,0.00054217,87953.0,87925.0,0.01137332]
[1769357860612,0.000685,87964.0,87922.0,0.12297649]
[1769357860613,0.000685,87964.0,87933.0,1.07109422]
[1769357860788,0.000685,87964.0,87937.0,1.07109422]
[1769357861040,0.000685,87964.0,87940.0,0.48210747]
[1769357861212,0.08868138,88009.0,87941.0,0.04934792]
[1769357861414,0.00592812,87997.0,87961.0,1.07109422]
[1769357861613,0.0001,87998.0,87965.0,0.48210747]
[1769357861813,0.0001,87998.0,87970.0,0.37266488]
[1769357862038,0.0001,87998.0,87972.0,0.49347472]
[1769357862280,0.0001,87998.0,87973.0,0.01136712]
[1769357862416,0.01136092,88021.0,87981.0,1.07109422]
[1769357862615,0.00094229,88012.0,87983.0,0.01136583]
[1769357862816,0.00094229,88012.0,87985.0,0.48210747]
[1769357863019,0.01136092,88021.0,87986.0,0.10824705]
[1769357863219,0.01136157,88016.0,87986.0,0.10838914]
[1769357863582,0.01136131,88018.0,87986.0,0.00014209]
[1769357863791,0.50561811,88037.0,87990.0,0.37266488]
[1769357863959,0.50561811,88037.0,87991.0,0.04556]
[1769357863960,0.01135937,88033.0,87991.0,0.04556]
[1769357864167,0.0113595,88032.0,87993.0,0.48210747]
[1769357864400,0.0113604,88025.0,87993.0,0.48210747]
[1769357864552,1.11437052,88027.0,87994.0,0.02817369]
[1769357864767,0.01135911,88035.0,87993.0,0.23180454]
[1769357864957,0.01135898,88036.0,87995.0,0.48210747]
[1769357865157,0.020736,88038.0,87996.0,0.48210747]
[1769357865336,0.020736,88038.0,87993.0,0.22044]
[1769357865337,0.01136053,88024.0,87993.0,0.22044]
[1769357865678,0.01136027,88026.0,87993.0,0.22044]
[1769357865821,0.01236015,88027.0,87994.0,0.022044]
[1769357866019,0.001,88027.0,87994.0,0.022044]
[1769357866261,0.001,88027.0,87995.0,0.23646575]
[1769357866461,0.001,88027.0,87999.0,0.48210747]
[1769357866667,0.001,88027.0,87994.0,0.022044]
[1769357866904,0.001,88027.0,87996.0,0.48210747]
[1769357867101,0.0113604,88025.0,87996.0,0.48210747]
[1769357867335,0.01135911,88035.0,87996.0,0.48210747]
[1769357867503,0.2882,88035.0,87996.0,0.48210747]
[1769357867716,0.01135963,88031.0,87998.0,0.48210747]
[1769357867920,0.01136002,88028.0,87999.0,0.11160278]
[1769357868127,0.01123023,87999.0,87990.0,0.04552]
[1769357868667,0.37038743,88020.0,87984.0,1.07109422]
[1769357868868,0.37038743,88010.0,87984.0,1.11661422]
[1769357869069,0.01136247,88009.0,87971.0,0.10715222]
[1769357869274,0.38174977,88010.0,87975.0,0.04552]
[1769357869431,0.31178504,88012.0,87975.0,0.04552]
[1769357869633,0.37038743,88010.0,87975.0,0.04552]
[1769357869977,1.12974601,88003.0,87971.0,0.10715222]
[1769357870187,0.37038743,88050.0,87966.0,0.04552]
[1769357870188,0.37038743,87981.0,87966.0,0.04552]
[1769357870383,0.00014185,87981.0,87966.0,0.04552]
[1769357870791,0.01136441,87994.0,87966.0,0.04552]
[1769357870966,0.01136505,87989.0,87967.0,0.02324379]
[1769357871131,0.01136428,87995.0,87966.0,0.04566185]
[1769357871333,0.37038743,87990.0,87966.0,0.04566185]
[1769357871532,0.020736,88005.0,87966.0,0.04566185]
[1769357871776,0.2079,88009.0,87971.0,1.07109422]
[1769357871988,0.31154537,88014.0,87973.0,0.01136712]
[1769357872176,0.31154537,88014.0,87972.0,0.12297003]
[1769357872177,0.01136169,88015.0,87974.0,1.07109422]
[1769357872390,0.01136131,88018.0,87975.0,0.49347433]
[1769357872595,0.51105091,88021.0,87975.0,0.49347433]
[1769357872596,0.01136247,88009.0,87975.0,0.60026445]
[1769357872772,0.38174848,88020.0,87976.0,0.11160278]
[1769357872976,0.01136234,88010.0,87978.0,1.07109422]
[1769357873168,0.01136286,88006.0,87979.0,0.01249989]
[1769357873349,0.37038743,88010.0,87966.0,0.04566185]
[1769357873350,0.01136376,87999.0,87966.0,0.04566185]
[1769357873586,0.37038743,87990.0,87966.0,0.00014185]
[1769357873973,0.01136518,87988.0,87966.0,0.00014185]
[1769357874169,0.37038743,87980.0,87966.0,0.00014185]
[1769357874374,0.01136389,87998.0,87966.0,0.00014185]
[1769357874577,0.020736,88004.0,87966.0,1.55334354]
[1769357874759,0.37038743,88000.0,87966.0,0.00014185]
[1769357874958,0.01136402,87997.0,87966.0,0.00014185]
[1769357875204,0.32163459,88004.0,87966.0,0.00014185]
[1769357875205,0.01136544,87986.0,87966.0,0.00014185]
[1769357875381,0.37038743,87990.0,87966.0,0.00014185]
[1769357875578,0.01136518,87988.0,87966.0,0.00014185]
[1769357875945,0.01136557,87985.0,87966.0,0.00014185]
[1769357876103,0.0113657,87984.0,87966.0,0.00014185]
[1769357876470,0.01136557,87985.0,87966.0,0.00014185]
[1769357876695,0.38175235,87990.0,87966.0,0.00014185]
[1769357876899,0.01136518,87988.0,87966.0,0.00014185]
[1769357877098,0.01136531,87987.0,87966.0,0.00014185]
[1769357877295,0.01136518,87988.0,87966.0,0.00014185]
[1769357877504,0.01136441,87994.0,87966.0,0.00014185]
[1769357877683,0.05682784,87986.0,87966.0,0.00014185]
[1769357877888,1.519145,88012.0,87966.0,0.00014185]
[1769357878089,0.01136376,87999.0,87968.0,0.48210747]
[1769357878294,0.01136415,87996.0,87969.0,0.05395805]
[1769357878624,0.37038743,88000.0,87969.0,0.00573312]
[1769357878825,0.01136337,88002.0,87967.0,1.07109422]
[1769357878996,0.01136337,88002.0,87968.0,0.48784333]
[1769357879363,0.01136402,87997.0,87968.0,0.48210747]
[1769357879950,0.01136454,87993.0,87968.0,0.48210747]
[1769357880151,0.01136389,87998.0,87969.0,0.04822493]
[1769357880386,0.01136544,87986.0,87966.0,0.00014185]
[1769357880578,0.01136441,87994.0,87966.0,0.00014185]
[1769357880804,0.22731069,87986.0,87956.0,0.04552]
[1769357881018,0.0115074,87986.0,87957.0,0.00538641]
[1769357881232,0.0113657,87984.0,87958.0,0.07077339]
[1769357881356,0.00014196,87986.0,87959.0,0.00538628]
[1769357881560,0.00014196,87986.0,87960.0,1.07109422]
[1769357881763,0.00014196,87986.0,87962.0,0.48210747]
[1769357881985,0.00014196,87986.0,87965.0,1.07109422]
[1769357882210,0.00014196,87986.0,87967.0,0.48210747]
[1769357882431,0.00014196,87986.0,87968.0,0.48210747]
[1769357882870,0.00014196,87986.0,87969.0,0.0003502]